{"text_format":"1","workbook":"xlsx","n_sheets":10,"sheets":["I. IPLEFrontpage","II. Fund Use Parameters","III. Fund Allocation_Narrative","IV. SchA_Form","V. Agency Contact Form ","VI. Programmatic Questions A","AM1Form._AmendmentCover","Amend Details_III","FFR1_ Final Report","tydings_details"],"not_rendered":{"charts":0,"images":0,"macros":1,"external_links":3,"defined_names":126,"comments":0,"pivot_tables":0},"unopened":[],"bounds":{"document_bytes":16777216,"sheet_cells":100000,"rows_first":2000,"rows_last":500,"rows_between":2000,"halvings":0,"cell_chars":16384,"cell_head_chars":4096},"cells_cut":0,"cells_raw":0,"read":"whole","date_system":"1900"}

{"sheet":"I. IPLEFrontpage","index":0,"n_rows":48,"n_cols":16,"rows_kept":48,"cut":false,"hidden":false,"merged":[[47,9,47,10],[46,1,46,15],[44,1,44,15],[45,1,45,15],[16,1,16,2],[17,1,17,2],[20,1,20,13],[20,14,20,15],[19,14,19,15],[23,14,23,15],[16,8,16,11],[23,3,23,13],[32,1,32,15],[16,3,17,7],[16,14,16,15],[26,3,26,13],[1,1,1,15],[2,1,2,15],[29,1,29,15],[16,12,16,13],[4,12,4,14],[15,8,15,13],[17,14,17,15],[26,14,26,15],[17,8,17,11],[7,4,7,5],[11,12,11,15],[4,3,4,5],[6,4,6,7],[5,12,5,15],[6,12,7,15],[7,7,7,10],[34,3,34,12],[9,12,9,15],[17,12,17,13],[9,3,9,5],[40,19,40,33],[28,19,35,33],[30,1,30,15],[35,1,35,15],[38,1,38,15],[37,1,37,15],[33,1,33,15],[36,19,36,33],[36,1,36,15],[31,1,31,15],[37,19,37,33],[39,19,39,33]]}
[]
[null,"MASSACHUSETTS DEPARTMENT OF EARLY EDUCATION AND CARE"]
[null,"FY2014 INCLUSIVE PRESCHOOL LEARNING ENVIRONMENTS RENEWAL GRANT (Fund Code 391)"]
[]
[null,"A. APPLICANT",null,"Lead Agency Name:",null,null,null,3,null,null,null,null,"Org Code:",null,null,{"$f":"LEFT(VLOOKUP('I. IPLEFrontpage'!$H$5,tydings_details!A1:O100,6,FALSE), 10)","v":"Lead Agenc"}]
[null,null,null,null,null,null,null,null,null,null,null,null,"Communities Served:"]
[null,null,null,"Address: ",{"$f":"VLOOKUP('I. IPLEFrontpage'!$H$5,tydings_details!A1:O100,7,FALSE)","v":"Legal Address"},null,null,null,null,null,null,null,"Enter Names of Communities Served:City/town, City/town, City/town, etc"]
[null,null,null,null,{"$f":"VLOOKUP('I. IPLEFrontpage'!$H$5,tydings_details!A1:O100,9,FALSE)","v":"City"},null,null,{"$f":"VLOOKUP('I. IPLEFrontpage'!$H$5,tydings_details!A1:O100,11,FALSE)","v":"TIN_Zip_Code"}]
[]
[null,"Grant Contact Name: ",null,"Enter Contact Name ",null,null,null,"Contact Telephone:",null,null,null,null,"Enter Contact Phone "]
[]
[null,null,null,null,null,null,null,"Contact Email:",null,null,null,null,"enter email "]
[]
[]
[null,"B. GRANT APPLICATION BUDGET WORKBOOK "]
[null,null,null,null,null,null,null,null,"PROJECT DURATION"]
[null,"Fund Code 391 ",null,"INCLUSIVE PRESCHOOL LEARNING ENVIRONMENTS ",null,null,null,null,"FROM",null,null,null,"TO",null,"Allocation Amount"]
[null,"Program Name:",null,null,null,null,null,null,"7/1/2013 or Upon Approval",null,null,null,"2014-06-30",null,{"$f":"VLOOKUP('I. IPLEFrontpage'!$H$5,tydings_details!A1:O100,12,FALSE)","v":"FY14 Eligibility Amount"}]
[]
[null,"C.  ASSIGNMENT THROUGH SCHEDULE A",null,null,null,null,null,null,null,null,null,null,null,null,"Amount Assigned "]
[null,"Check the box above, ONLY if this project will be using funds assigned by more than one agency.  The Schedule A form located in the tab marked SchA_Formof  this Budget Workbook, must be completed with the names of the participating agencies and the amount of funds assigned by each to this project. A signed original Schedule A must also be mailed with the original grant application, when the Schedule A form is used. ",null,null,null,null,null,null,null,null,null,null,null,null,{"$f":"IF('IV. SchA_Form'!A35,'IV. SchA_Form'!F34,0)","v":0}]
[]
[]
[null,null,null,"Total Eligibility Amount  (Must Not Exceed the Lead Agency Allocation Amount plus the amount assigned through the Schedule A Form, if any.",null,null,null,null,null,null,null,null,null,null,{"$f":"SUM(O18)+O21","v":0}]
[]
[]
[null,null,null,"TOTAL AMOUNT REQUESTED:",null,null,null,null,null,null,null,null,null,null,{"$f":"'III. Fund Allocation_Narrative'!$E$19","v":0}]
[]
[]
[]
[null,"Please save this Budget Workbook as \"Budget Workbook391_Lead Agency Name\"."]
[null,"To be submitted electronically: This Budget Workbook must be submitted via email as an attachment to EECSubmission@massmail.state.ma.us. Please include the name of your agency and name of your grant in the subject line of your email."]
[]
[null,"To be mailed:  One original (all signatures must be in blue ink) and one copy.                                                                                                                              These documents must be received by 4:00 PM on June 13, 2013."]
[null,null,null,"Massachusetts Department of Early Education and Care "]
[null,"FY2014 Inclusive Preschool Learning Environments Renewal Grant, Program Name"]
[null,"Attention: Jessica Fix, Grants Adminstration"]
[null,"51 Sleeper Street, 4th Floor"]
[null,"Boston, MA 02210"]
[]
[]
[]
[]
[]
[null,"DO NOT WRITE BELOW THIS LINE"]
[null,"MASSACHUSETTS DEPARTMENT OF EARLY EDUCATION AND CARE USE ONLY"]
[]
[null,"For the EEC Authorized Signatory:",null,null,null,{"$f":"VLOOKUP(H5,tydings_details!A1:P100,16,FALSE)","v":"39114 DOCID"},null,null,null,null,null,"Date:","___________________________"]

{"sheet":"II. Fund Use Parameters","index":1,"n_rows":7,"n_cols":3,"rows_kept":7,"cut":false,"hidden":false,"merged":[[0,0,0,2],[1,0,1,2]]}
[]
["FY2014 Inclusive Preschool Learning Environments Renewal Grant "]
["Line #"," Category","Fund Use Parameters"]
[1,"Inclusive Preschool Teacher Salaries","Only applicable for funding employed teachers providing direct services to preschool aged children in classrooms that meet the definition of Inclusive Learning Environments.  Such positions must be funded from the grantee’s Inclusive Learning Environment Allocation only (See Appendix C for allocation amounts). Fund use is limited to teacher and/or paraprofessional positions which are in direct relation to maintaining the required adult/child ratios and can not be used to fund additional persons in the classroom.  Please note: salaries in public school settings must be proportionate to the number of preschool aged peer models served; special education funds should be used to serve children with IEPs."]
[2,"Inclusive Paraprofessional Salaries","Only applicable for funding employed paraprofessionals providing direct services to preschool aged children in classrooms that meet the definition of Inclusive Learning Environments.  Such positions must be funded from the grantee’s Inclusive Learning Environment Allocation only (See Appendix C).  Fund use is limited to paraprofessional positions which are in direct relation to maintaining the required adult/child ratios and can not be used to fund additional persons in the classroom.  Please note: salaries in public school settings must be proportionate to the number of preschool aged peer models served; special education funds should be used to serve children with IEPs."]
[3,"Preschool Direct Services Staff Fringe Benefits","Only applicable for funding fringe benefit costs for teacher and paraprofessional positions funded through the teacher and paraprofessional salaries lines of this grant.  Fringe costs may only be funded using a grantee’s Inclusive Learning Environment Allocation (See Appendix C).  MTRS IS NOT AN ALLOWABLE FRINGE EXPENSE FOR FUND CODE 391"]
[4,"Transportation","Costs associated with providing transportation for children, including subcontracted staff for transportations services (exclusive of transportation required by children’s IEPs). "]

{"sheet":"III. Fund Allocation_Narrative","index":2,"n_rows":23,"n_cols":8,"rows_kept":23,"cut":false,"hidden":false,"merged":[[19,6,19,7],[9,5,9,7],[11,5,11,7],[17,5,17,7],[15,5,15,7],[10,5,10,7],[18,5,18,7],[14,5,14,7],[16,5,16,7],[12,5,12,7],[13,5,13,7],[17,2,17,3],[15,2,15,4],[2,5,2,6],[4,2,4,3],[5,0,5,7],[3,2,3,3],[6,0,7,1],[6,2,6,4],[7,2,7,4],[6,5,7,7],[8,5,8,7]]}
[]
["Fund Allocation and Budget Narrative",null,null,null,"Fund Code 391",null,null,"Inclusive Preschool Learning Environments "]
[{"$f":"'I. IPLEFrontpage'!$P$5","v":"Lead Agenc"},"Lead Agency Name:",{"$f":"VLOOKUP('I. IPLEFrontpage'!$H$5,tydings_details!A1:O100,5,FALSE)","v":"Select FY14 Lead Agency Name "},null,null,"Grant Contact Name: ",null,{"$f":"'I. IPLEFrontpage'!$D$10","v":"Enter Contact Name "}]
[null,"Address:",{"$f":"'I. IPLEFrontpage'!$E$7","v":"Legal Address"},null,null,null,"Email: ",{"$f":"'I. IPLEFrontpage'!$M$12","v":"enter email "}]
[null,"City, Zip:",{"$f":"'I. IPLEFrontpage'!$E$8","v":"City"},null,{"$f":"'I. IPLEFrontpage'!$H$8","v":"TIN_Zip_Code"},null,"Phone: ",{"$f":"'I. IPLEFrontpage'!$M$10","v":"Enter Contact Phone "}]
["FY2014 INCLUSIVE PRESCHOOL LEARNING ENVIRONMENTS RENEWAL GRANT (Fund Code 391)"]
["Expenditure Category ",null,"Performance Period",null,null,"Budget Narrative"]
[null,null,"July 1, 2013- June 30, 2014"]
[null,"Funding to Support Inclusive Preschool Settings","Number of Staff ","Total Number of FTEs","Proposed FY14 Expenditures","Please give a brief explaination of each expediture and how it aligns with the specific activities of the grant. Please included the Number of Staff (column A) and Number of FTEs (column B) for Line Items 1 and 2.                                                                                                                                                                          "]
[null,"Line Items","Column A","Column B","Column C","Column D (255 character limit per line item)"]
[1,"Inclusive Preschool Teacher Salaries",0,0,0]
[2,"Inclusive Paraprofessional Salaries",0,0,0]
[3,"Preschool Direct Services Staff Fringe Benefits",0,0,0]
[null,"Subtotal Salaries and Fringe ",{"$f":"SUM(C11:C12)","v":0},{"$f":"SUM(D11:D12)","v":0},{"$f":"SUM(E11:E13)","v":0}]
[]
[null,"Transportation ",null,null,null,"Please indicate the projected total number of children that will receive transportation in FY2014 through Fund Code 391 and the estimated cost per child in the budget narrative section below. "]
[4,"Transportation",null,null,0]
[null,"Subtotal Transportation ",null,null,{"$f":"SUM(E17)","v":0}]
[null,"FY14 Inclusive Preschool Learning Environments Budget TOTAL",null,null,{"$f":"SUM(E18+E14)","v":0},"If your total is displayed in orange text, you have exceeded your total eligibility amount amount, please adjust your budget accordingly. ALL REQUEST FOR FUNDS MUST BE IN WHOLE DOLLAR AMOUNTS "]
[null,{"$f":"$C$3","v":"Select FY14 Lead Agency Name "},"Budget Check",null,"Approved by (int)",null,"    "]
[null,{"$f":"VLOOKUP('I. IPLEFrontpage'!$H$5,tydings_details!A1:O100,12,FALSE)","v":"FY14 Eligibility Amount"},"Lead Amount",null,"Approved by (int)",null,null,{"$f":"'I. IPLEFrontpage'!F48","v":"39114 DOCID"}]
[null,{"$f":"'IV. SchA_Form'!$F$34","v":0},"Schedule A ","(difference)"]
[null,{"$f":"SUM(B21:B22)","v":0},{"$f":"'I. IPLEFrontpage'!$O$27","v":0},{"$f":"SUM(C23-B23)","v":0}]

{"sheet":"IV. SchA_Form","index":3,"n_rows":40,"n_cols":10,"rows_kept":40,"cut":false,"hidden":false,"merged":[[25,0,25,4],[23,0,23,4],[24,0,24,4],[9,0,12,0],[14,4,15,5],[13,0,15,0],[9,1,12,3],[13,1,15,3],[18,0,18,9],[19,5,20,5],[19,0,20,4],[22,6,22,9],[22,0,22,4],[30,6,30,9],[27,6,27,9],[28,6,28,9],[0,0,0,9],[1,0,1,9],[3,0,3,9],[4,0,4,9],[6,1,8,9],[6,0,8,0],[17,0,17,9],[21,0,21,4],[21,6,21,9],[26,0,26,4],[23,6,23,9],[25,6,25,9],[24,6,24,9],[39,0,39,9],[37,0,37,9],[26,6,26,9],[19,6,20,9],[33,1,33,4],[33,6,33,9],[27,0,27,4],[32,6,32,9],[28,0,28,4],[32,0,32,4],[31,6,31,9],[30,0,30,4],[31,0,31,4],[35,0,36,9],[29,0,29,4],[29,6,29,9]]}
["MASSACHUSETTS DEPARTMENT OF EARLY EDUCATION AND CARE"]
["FY2014 INCLUSIVE PRESCHOOL LEARNING ENVIRONMENTS RENEWAL GRANT (Fund Code 391)"]
[]
["SCHEDULE A"]
["(Consolidated Assignment Schedule)"]
[]
[1,"Schedule A is to be completed if the applicant agency operates and administers a grant project using funds assigned from more than one agency. Only agencies listed in Appendix C: FY14 Eligiblity List may be considered as \"Particpating Agencies\""]
[]
[]
[2,"Agency operating and administering the project:               (Legal Name of Agency)"]
[]
[null,null,null,null,{"$f":"'III. Fund Allocation_Narrative'!C3","v":"Select FY14 Lead Agency Name "},null,"Org Code: ",{"$f":"'I. IPLEFrontpage'!P5","v":"Lead Agenc"}]
[]
[3,"Name of grant program/\nSource of funds:"]
[null,null,null,null,"INCLUSIVE PRESCHOOL LEARNING ENVIRONMENTS ",null,null,"Fund Code: ",null,391]
[]
[]
["Please list all other participating agencies that have assigned their FY14 IPLE funds, and the amount of funds assigned by that entity. If not applicable, this form should be left blank. "]
["ONE (1) ORIGINAL ASSIGNMENT SCHEDULE (SCHEDULE A FORM) SIGNED BY EACH PARTICIPATING AGENCY’s AUTHORIZED SIGNITORY MUST BE SUBMITTED VIA MAIL AS PART OF THE GRANT RENEWAL APPLICATION  "]
["Name of Participating Agency",null,null,null,null,"Amount of Assigned Funds","* Authorized Signature (in blue ink)"]
[]
[null,null,null,null,null,0]
[null,null,null,null,null,0]
[null,null,null,null,null,0]
[null,null,null,null,null,0]
[null,null,null,null,null,0]
[null,null,null,null,null,0]
[null,null,null,null,null,0]
[null,null,null,null,null,0]
[null,null,null,null,null,0]
[null,null,null,null,null,0]
[null,null,null,null,null,0]
[null,null,null,null,null,0]
[null,"Total of Assigned Funds",null,null,null,{"$f":"SUM(F22:F33)","v":0}]
[false]
["*I/We assign the identified funds to the project described in the accompanying grant application. The indicated agency is authorized to receive and disburse funds for the purpose of operating the project."]
[]
["The amounts under this column must agree with the corresponding subtotals on the IPLE Front page. The amounts assigned for each participating agency must not exceed their FY2014 allocation amount as listed in Appendix C. "]
[]
["Mail an original signed hard copy of the Schedule A Form as instructed in the Grant Renewal Application "]

{"sheet":"V. Agency Contact Form ","index":4,"n_rows":14,"n_cols":11,"rows_kept":14,"cut":false,"hidden":false,"merged":[[1,5,1,6],[1,7,1,8],[3,6,3,7],[13,2,13,4],[2,0,2,1],[5,0,5,10],[6,0,6,10],[13,8,13,10],[4,2,4,3],[3,2,3,3],[2,6,2,7],[4,6,4,7],[2,8,2,10],[3,8,3,10],[4,8,4,10],[2,2,2,5]]}
[]
["PART V - Agency Contact Information Form ",null,null,null,null,"Fund Code 391",null,{"$f":"VLOOKUP('I. IPLEFrontpage'!H5,tydings_details!A1:P100,6,FALSE)","v":"Lead Agency Organization ID"},null,null,"FY2014"]
["Grant Lead Agency Name:",null,{"$f":"VLOOKUP('I. IPLEFrontpage'!$H$5,tydings_details!A1:O100,5,FALSE)","v":"Select FY14 Lead Agency Name "},null,null,null,"Grant Coordinator Name: ",null,{"$f":"'I. IPLEFrontpage'!$D$10","v":"Enter Contact Name "}]
[null,"Address:",{"$f":"'I. IPLEFrontpage'!$E$7","v":"Legal Address"},null,null,null,"Email: ",null,{"$f":"'I. IPLEFrontpage'!$M$12","v":"enter email "}]
[null,"City, Zip:",{"$f":"VLOOKUP('I. IPLEFrontpage'!$H$5,tydings_details!A1:O100,9,FALSE)","v":"City"},null,{"$f":"VLOOKUP('I. IPLEFrontpage'!$H$5,tydings_details!A1:O100,11,FALSE)","v":"TIN_Zip_Code"},null,"Phone: ",null,{"$f":"'I. IPLEFrontpage'!$M$10","v":"Enter Contact Phone "}]
["Complete the contact sheet below to ensure EEC has current contact information for each position listed, as this information is used throughout the grant. performance period.   "]
[" Please note that it is the responsibility of the grantee to notify EEC if there are any changes to the information provided below."]
[null,"Job Function ","Position Title","First Name ","Last Name ","Address ","City/Town ","Zip Code ","Phone: ","Fax:  ","Email "]
[1,"Early Childhood Coordinator             (Special Education)\n"]
[2,"Special Education Director"]
[3,"Superintendent/ Executive Director of Lead Agency "]
[4,"Fiscal Contact "]
[5,"Summer Contact*"]
[null,null,null,null,null,null,"Updated (int)",null,"Part V Agency Contact Form    "]

{"sheet":"VI. Programmatic Questions A","index":5,"n_rows":44,"n_cols":10,"rows_kept":44,"cut":false,"hidden":false,"merged":[[44,2,44,5],[34,2,34,5],[27,7,27,8],[36,1,36,10],[39,2,39,5],[41,2,41,5],[41,7,41,8],[32,1,32,10],[37,1,37,9],[43,2,43,5],[29,2,29,5],[31,1,31,10],[30,2,30,5],[20,2,20,5],[28,2,28,5],[18,2,18,10],[17,1,17,10],[12,1,12,5],[23,1,23,10],[27,2,27,5],[13,2,13,5],[14,2,14,5],[25,2,25,5],[21,2,21,5],[19,2,19,8],[5,1,5,10],[0,1,0,10],[1,1,1,10],[15,2,15,5],[10,2,10,10],[6,1,6,10],[9,2,9,10],[7,1,7,5],[7,6,7,10]]}
[null,"FY2014 PROGRAMMATIC QUESTIONS 1-7 (Section A)"]
[null,"FY2014 INCLUSIVE PRESCHOOL LEARNING ENVIRONMENTS RENEWAL GRANT(Fund Code 391)"]
[]
[null,{"$f":"'III. Fund Allocation_Narrative'!C3","v":"Select FY14 Lead Agency Name "},null,null,null,null,null,"Org Code: ",{"$f":"'I. IPLEFrontpage'!P5","v":"Lead Agenc"}]
[]
[null,"To address how IPLE funded programs and schools will continue to meet the grant priority and requirements listed in the FY2014 Inclusive Preschool Learning Environments Renewal Grant, please respond to the questions below."]
[null,"A response is required for each question in the corresponding yellow boxes."]
[null,"Number Funded Programs and Schools "]
[]
[null,1,"How many programs and public school received IPLE grant funding  through your lead agency for FY 2013 (July 1, 2012- June 30, 2013)?"]
[null,null,"How many programs and public school will receive IPLE renewal grant funding  through your lead agency for FY 2014 (July 1, 2013- June 30, 2014)?"]
[]
[null,"Program Type:",null,null,null,null,"FY13",null,"FY14","Anticipated "]
[null,"a. ","Number of EEC-Licensed Center-based programs",null,null,null,0,null,0]
[null,"b.","Number of Public Schools ",null,null,null,0,null,0]
[null,"c.","Number of  Schools w/EEC-License",null,null,null,0,null,0]
[null,null,null,null,null,null,{"$f":"SUM(G14:G16)","v":0},null,{"$f":"SUM(I14:I16)","v":0}]
[null,"Number of Classrooms  (This is the number of classrooms where the funded Preschool teachers and Paraprofessionals work)"]
[null,2,"How many preschool classrooms received IPLE funding in FY13 (July 1, 2012- June 30, 2013)?"]
[null,null,"How many preschool classrooms will receive IPLE funding in FY14 (July 1, 2013- June 30, 2014)?"]
[null,null,"Funded Inclusive Preschool Settings",null,null,null,"FY13",null,"FY14","Anticipated "]
[null,null,"Number of funded classrooms",null,null,null,0,null,0]
[]
[null,"Children Served  (This is the number of children served by FY2013 IPLE-funded staff positions during the 2012-2013 school year?"]
[null,null,null,null,null,null,"FY13"]
[null,3,"How many children without disabilities were served by IPLE -funded staff positions during the 2012-2013 school year?",null,null,null,0]
[]
[null,4,"How many children with disabilities were served by IPLE -funded staff positions during the 2012-2013 school year?",null,null,null,0,"(children with IEPs)"]
[null,null,"Funded Inclusive Preschool Settings",null,null,null,"FY13",null,"FY14","Anticipated "]
[]
[null,null,"Total Number of Children Served through the FY2013 Inclusive Preschool Learning Enviroments Grant during school year 2012-2013",null,null,null,{"$f":"SUM(G28+G26)","v":0}]
[]
[null,"Transportation   (The the number of children that received tranportation with IPLE funding)  "]
[null,null,null,null,null,null,"FY13"]
[null,5,"How many children received transportation with IPLE funds during school year 2012-2013? ",null,null,null,0]
[]
[null,"Children Served ON DECEMBER 1, 2012: "]
[null,"Please provide information on the number of childen enrolled in IPLE funded settings on December 1, 2012."]
[null,null,null,null,null,null,"Dec. 1, 2012"]
[null,6,"How many children without disabilities were enrolled on December 1, 2012",null,null,null,0]
[]
[null,7,"How many children with disabilities were enrolled in IPLE -funded setting on December 1, 2012",null,null,null,0]
[]
[null,null," On December 1, 2012, the total number of children enrolled in the IPLE funded settings: ",null,null,null,{"$f":"SUM(G42+G40)","v":0}]

{"sheet":"AM1Form._AmendmentCover","index":6,"n_rows":60,"n_cols":8,"rows_kept":60,"cut":false,"hidden":false,"merged":[[25,5,25,7],[28,4,28,5],[29,4,29,5],[28,1,28,2],[29,1,29,2],[26,5,26,7],[26,2,26,3],[24,2,25,3],[22,1,23,1],[22,4,23,7],[24,5,24,7],[22,2,22,3],[23,2,23,3],[54,5,54,7],[30,1,30,3],[52,2,52,4],[51,2,51,4],[52,5,52,7],[51,5,51,7],[53,2,53,4],[54,2,54,4],[50,1,50,7],[53,5,53,7],[36,2,36,3],[19,2,19,3],[15,2,15,7],[21,4,21,7],[20,2,20,3],[20,4,20,5],[18,2,18,3],[21,2,21,3],[19,4,19,7],[60,5,60,7],[58,4,58,5],[57,4,57,5],[59,4,59,7],[57,6,57,7],[58,6,58,7],[10,2,10,7],[14,1,14,7],[16,1,16,7],[17,4,17,6],[13,2,13,7],[17,2,17,3],[11,2,11,4],[11,5,11,7],[12,2,12,7],[9,2,9,7],[1,1,1,7],[2,1,2,7],[4,1,4,7],[5,1,5,7],[8,1,8,7],[7,2,7,7]]}
[]
[null,"MASSACHUSETTS DEPARTMENT OF EARLY EDUCATION AND CARE       "]
[null,"FY2014 Inclusive Preschool Learning Environments Grant"]
[]
[null,"FORM AM 1"]
[null,"(AMENDMENT REQUEST FORM)"]
[]
[null,null,"EEC must be in receipt of all Budget Amendment Request Forms, no later than April 15, 2014. "]
[null,"PART I:"]
[null,"1.","Fill in the yellow highlighted sections  on the AMENDMENT REQUEST FORM (Amendment Cover tab)  and the Amendment Budget Justification (Budget Amend Tab). Do NOT change the file name."]
[null,"2. ","Email this entire workbook to EEC to the following email address with the subject line FY14 391 Budget Amendment Request and your agency name.  "]
[null,null,"Please send your Amendment Request Form to: ",null,null,"EECSubmission@massmail.state.ma.us"]
[null,"3.","EEC will review and approve (fiscally and programmaticaly) your electronic request via email. "]
[null,"4","Upon receipt of EEC's emailed response, the AM-1 form requires the  original signature of lead agency authorized representative) and the entire Budget Amendment Request Form (AM1 Form Amendment Cover page and the Budget Amendment Justification - Detail Information) must be be mailed to EEC. All signed Budget Amendment Requests Forms should be mailed to: "]
[null,"                Jessica Fix, MA Department of Early Education and Care, 51 Sleeper Street, 4th Floor, Boston, MA 02210.                               "]
[null,null,"Please Note: All amendment requests must be approved in writing by an authorized representative of the MA Department of Early Education and Care prior to implementation."]
[null,"GRANTEE INFORMATION:"]
[null,"A.","Grant Recipient:",null,{"$f":"VLOOKUP('I. IPLEFrontpage'!$H$5,tydings_details!A1:O100,5,FALSE)","v":"Select FY14 Lead Agency Name "},null,null,"FY14 IPLE"]
[null,"B.","(Legal Name of Agency)",null,{"$f":"VLOOKUP('I. IPLEFrontpage'!$H$5,tydings_details!A1:O100,14,FALSE)","v":"391FY14_LegalName"}]
[null,"C.","Address:",null,{"$f":"VLOOKUP('I. IPLEFrontpage'!$H$5,tydings_details!A1:O100,7,FALSE)","v":"Legal Address"}]
[null,"D.","(Street,City/Town/Zip Code)",null,{"$f":"VLOOKUP('I. IPLEFrontpage'!$H$5,tydings_details!A1:O100,9,FALSE)","v":"City"},null,{"$f":"VLOOKUP('I. IPLEFrontpage'!$H$5,tydings_details!A1:O100,11,FALSE)","v":"TIN_Zip_Code"}," "]
[null,"G.","Project Number:",null,{"$f":"VLOOKUP('I. IPLEFrontpage'!H5,tydings_details!A1:S100,16,FALSE)","v":"39114 DOCID"}]
[null,"H.","Name of grant program/",null,"FY14 Inclusive Preschool Learning Environments Grant (391)"]
[null,null,"Source of funds"]
[null,"I.","Name of person completing this report: (Print or Type)",null,"Name:"]
[null,null,null,null,"Title:"]
[null,null,null,null,"Phone Number: "]
[]
[]
[]
[null,null,null,null,"Column A","Column B","Column C"]
[null,null,null,null,"BUDGET"]
[null,null,"LINE ITEM",null,"APPROVED","AMENDMENT","REVISED"]
[null,null,null,null,"ORIGINALLY","REQUEST","BUDGET"]
[]
[]
[null,"1.","Administrators",null,{"$f":"'Amend Details_III'!$H$17+'Amend Details_III'!$H$18","v":0},{"$f":"IF(E37 =\"\",G37-D37,G37-E37)","v":{"$error":"#REF!"}},{"$f":"#REF!","v":{"$error":"#REF!"}}]
[null,"2.","Instructional/Direct Service Staff",null,{"$f":"'Amend Details_III'!$H$19","v":0},{"$f":"IF(E38 =\"\",G38-D38,G38-E38)","v":{"$error":"#REF!"}},{"$f":"#REF!","v":{"$error":"#REF!"}}]
[null,"3.","Support Staff",null,{"$f":"'Amend Details_III'!$H$20","v":0},{"$error":"#REF!"},{"$f":"#REF!","v":{"$error":"#REF!"}}]
[null,"4.","Fringe","MTRS",{"$f":"'Amend Details_III'!$H$22","v":0},{"$f":"IF(E40 =\"\",G40-#REF!,G40-E40)","v":{"$error":"#REF!"}},{"$f":"#REF!","v":{"$error":"#REF!"}}]
[null,null,"Benefits","Other",{"$f":"'Amend Details_III'!$H$21","v":0},{"$error":"#REF!"},{"$f":"#REF!+#REF!","v":{"$error":"#REF!"}}]
[null,"5.","Contractual Services",null,{"$f":"'Amend Details_III'!$H$24","v":0},{"$f":"IF(E42 =\"\",G42-D40,G42-E42)","v":{"$error":"#REF!"}},{"$f":"#REF!","v":{"$error":"#REF!"}}]
[null,"6.","Supplies",null,{"$f":"'Amend Details_III'!$H$23+'Amend Details_III'!$H$24+'Amend Details_III'!$H$25","v":0},{"$error":"#REF!"},{"$f":"#REF!","v":{"$error":"#REF!"}}]
[null,"7.","Travel",null,{"$f":"'Amend Details_III'!#REF!","v":{"$error":"#REF!"}},{"$error":"#REF!"},{"$f":"#REF!","v":{"$error":"#REF!"}}]
[null,"8.","Other",null,{"$f":"'Amend Details_III'!H25","v":0},{"$error":"#REF!"},{"$f":"#REF!","v":{"$error":"#REF!"}}]
[null,"9.","Indirect Costs",null,{"$f":"'III. Fund Allocation_Narrative'!#REF!","v":{"$error":"#REF!"}},{"$error":"#REF!"},{"$f":"#REF!","v":{"$error":"#REF!"}}]
[null,"10.","Equipment",null,{"$f":"'III. Fund Allocation_Narrative'!#REF!","v":{"$error":"#REF!"}},{"$error":"#REF!"},{"$f":"#REF!","v":{"$error":"#REF!"}}]
[null,"11.","Total",null,{"$f":"SUM(E37:E47)","v":{"$error":"#REF!"}},{"$f":"SUM(F37:F47)","v":{"$error":"#REF!"}},{"$f":"SUM(G37:G47)","v":{"$error":"#REF!"}}]
[]
[null,"Part II. To be completed by the district authorized representative"]
[null,"I certify that all the information contained in this AMENDMENT REQUEST is true and correct."]
[null,null,"Signature of Authorized Representative (blue ink):",null,null,"X"]
[null,null,"Typed or Printed Name:"]
[null,null,"Title: "]
[null,null,"Date Report Submitted:"]
[]
[null,"To be completed by the MA Department of Early Education and Care ACTION TAKEN"]
[null,"A. ","APPROVED",null,"EFFECTIVE DATE OF APPROVAL:"]
[null,"B.","DISAPPROVED",null,"REASON FOR DISAPPROVAL:"]
[null,"AM 1"]

{"sheet":"Amend Details_III","index":7,"n_rows":27,"n_cols":11,"rows_kept":27,"cut":false,"hidden":false,"merged":[[5,8,5,9],[3,8,3,10],[7,1,7,6],[8,2,8,6],[4,3,4,4],[3,3,3,5],[3,6,3,7],[4,8,4,10],[26,2,26,8],[14,1,14,2],[26,9,26,10],[15,8,15,10],[19,8,19,10],[20,8,20,10],[22,8,22,10],[23,8,23,10],[24,8,24,10],[14,8,14,10],[25,1,25,2],[25,8,25,10],[16,8,16,10],[17,8,17,10],[18,8,18,10],[9,2,9,6],[10,2,10,6],[13,8,13,10],[11,2,11,9],[13,4,13,7]]}
[]
[]
[null,"Part  III. BUDGET AMENDMENT JUSTIFICATIONS - DETAIL INFORMATION",null,null,null,null,null,null,null,"Fund Code 391","FY14 Amendment"]
[null,{"$f":"'I. IPLEFrontpage'!$P$5","v":"Lead Agenc"},"Grant Lead Agency Name:",{"$f":"VLOOKUP('I. IPLEFrontpage'!$H$5,tydings_details!A1:O100,5,FALSE)","v":"Select FY14 Lead Agency Name "},null,null,"Grant Contact Name: ",null,{"$f":"'I. IPLEFrontpage'!$D$10","v":"Enter Contact Name "}]
[null,null,"Address:",{"$f":"'I. IPLEFrontpage'!$E$7","v":"Legal Address"},null,null,null,"Email: ",{"$f":"'I. IPLEFrontpage'!$M$12","v":"enter email "}]
[null,null,"City, Zip",{"$f":"'I. IPLEFrontpage'!$E$8","v":"City"},null,null,null,"Phone: ",{"$f":"'I. IPLEFrontpage'!$M$10","v":"Enter Contact Phone "}]
[]
[]
[null,"A.","Column A will be filled in automatically as provided in the originally approved budget."]
[null,"B. ","Column B should be be completed by GRANTEE for AM1  and Column D for AM2"]
[null,"C. ","Column C will be filled in automatically as line item changes are made in Column B and Column E will be filled out automatically for AM2"]
[null,"D.","Column F should be completed by GRANTEE outlining amendment justifications and related changes to activities for each line item and how the budgetary changes impact the deliverly of the require services."]
[]
[null,null,null,null,"Budget Amendment Request",null,null,null,"Amendment Justification"]
[null,"Expenditure Category ",null,"Originally Approved Budget  ","Amendment Request 1","Revised Budget 1","Amendment Request 2","Revised Budget 2","Explain and justify why the proposed adjustments should be implemented and specify how budget changes impact the implementation of grant related activities. Include any adjustments to staff and number of FTEs for Line Items 1- 2, if applicable.                                                                                                                                                            "]
[null,null,"Line Items","Column A","Column B","Column C","Column D","Column E","Column F "]
[]
[null,1,"Inclusive Preschool Teacher Salaries",{"$f":"'III. Fund Allocation_Narrative'!$E$11","v":0},0,{"$f":"SUM(D18:E18)","v":0},0,{"$f":"SUM(F18+G18)","v":0}]
[null,2,"Paraprofessional Salaries",{"$f":"'III. Fund Allocation_Narrative'!$E$12","v":0},0,{"$f":"SUM(D19:E19)","v":0},0,{"$f":"SUM(F19+G19)","v":0}]
[null,3,"Preschool Direct Services Staff Fringe Benefits",{"$f":"'III. Fund Allocation_Narrative'!$E$13","v":0},0,{"$f":"SUM(D20:E20)","v":0},0,{"$f":"SUM(F20+G20)","v":0}]
[null,null,"Subtotal Salaries and Fringe ",{"$f":"'III. Fund Allocation_Narrative'!$E$14","v":0},{"$f":"SUM(E18:E20)","v":0},{"$f":"SUM(F18:F20)","v":0},{"$f":"SUM(G18:G20)","v":0},{"$f":"SUM(H18:H20)","v":0}]
[null,null,"Transportation "]
[null,4,"Transportation of Students",{"$f":"'III. Fund Allocation_Narrative'!$E$17","v":0},0,{"$f":"SUM(D23:E23)","v":0},0,{"$f":"SUM(F23+G23)","v":0}]
[null,null,"Subtotal Transportation ",{"$f":"'III. Fund Allocation_Narrative'!$E$18","v":0},{"$f":"SUM(E22:E23)","v":0},{"$f":"SUM(F23)","v":0},{"$f":"SUM(G23)","v":0},{"$f":"SUM(F24+G24)","v":0}]
[]
[null,{"$f":"'III. Fund Allocation_Narrative'!B19","v":"FY14 Inclusive Preschool Learning Environments Budget TOTAL"},null,{"$f":"'III. Fund Allocation_Narrative'!E19","v":0},{"$f":"SUM(E24+E21)","v":0},{"$f":"SUM(F24+F21)","v":0},{"$f":"SUM(G24+G21)","v":0},{"$f":"SUM(H24+H21)","v":0}]
[null,null,{"$f":"'III. Fund Allocation_Narrative'!B20","v":"Select FY14 Lead Agency Name "},null,null,null,null,null,null,"Budget  Amendment Details Page 2 "]

{"sheet":"FFR1_ Final Report","index":8,"n_rows":56,"n_cols":10,"rows_kept":56,"cut":false,"hidden":false,"merged":[[40,2,40,8],[1,1,1,9],[3,1,3,9],[21,4,21,6],[23,4,23,6],[26,5,26,8],[22,4,22,7],[19,4,19,7],[4,1,4,8],[8,2,8,6],[7,2,7,7],[9,2,9,6],[12,4,12,6],[24,2,24,3],[25,5,25,8],[39,2,39,8],[38,2,38,8],[37,2,37,8],[33,1,33,7],[35,1,35,7],[24,5,24,8],[43,2,43,5],[44,2,44,5],[45,2,45,5],[51,1,51,4],[50,1,50,4],[46,2,46,5],[47,2,47,5],[50,5,50,9],[49,1,49,9],[51,5,51,9],[52,5,52,9],[53,5,53,9],[53,1,53,4],[48,2,48,5],[52,1,52,4]]}
[]
[null,"MASSACHUSETTS DEPARTMENT OF EARLY EDUCATION AND CARE       "]
[]
[null,"(FY14 Fund Code 391 FINAL FINANCIAL REPORT)"]
[]
[null,"PART I:  GENERAL INSTRUCTIONS"]
[]
[null,"1.","All sections of this report highlighted in yellow must be completed, and the report submitted within 60 days of full liquidation but no later than August 31, 2014."]
[null,"2. ","A check made payable to the \"Commonwealth of Massachusetts\" must be returned for any unexpended funds with this FINAL FINANCIAL REPORT."]
[null,"3.","Complete and return to the following address:                   "]
[]
[null,null,null,null,"Department of Early Education and Care     "]
[null,null,null,null,"51 Sleeper Street, 4th Floor    "]
[null,null,null,null,"Boston, MA 02210 "]
[null,null,null,null,"ATTENTION:  GLORIA HICKEY"]
[]
[]
[null,"A.","Grant Recipient:",null,{"$f":"VLOOKUP('I. IPLEFrontpage'!$H$5,tydings_details!A1:O100,5,FALSE)","v":"Select FY14 Lead Agency Name "},null,null,"FY14 IPLE"]
[null,"B.","(Legal Name of Agency)",null,{"$f":"AM1Form._AmendmentCover!$E$19","v":"391FY14_LegalName"}]
[null,null,"Address:",null,{"$f":"VLOOKUP('I. IPLEFrontpage'!$H$5,tydings_details!A1:O100,7,FALSE)","v":"Legal Address"}]
[null,null,"(Street,City/Town/Zip Code)",null,{"$f":"VLOOKUP('I. IPLEFrontpage'!$H$5,tydings_details!A1:O100,9,FALSE)","v":"City"},null,{"$f":"VLOOKUP('I. IPLEFrontpage'!$H$5,tydings_details!A1:O100,11,FALSE)","v":"TIN_Zip_Code"},null," "]
[null,"C.","Project Number (Doc ID):",null,{"$f":"VLOOKUP('I. IPLEFrontpage'!H5,tydings_details!A1:P100,16,FALSE)","v":"39114 DOCID"}]
[null,"D.","Name of grant program/",null,"Fund Code 391 Inclusive Preschool Learning Environments "]
[null,null,"Source of funds"]
[null,"E.","Name of person completing this report: (Print or Type) ",null,"Name:"]
[null,null,null,null,"Title:"]
[null,null,null,null,"Phone Number: "]
[]
[null,"PART II:  Total Breakdown for FY 14 Inclusive Preschool Learning Enviornments Grant."]
[]
[null,null,null,"FY13 Eligibility Amount","  TOTAL FUNDS AWARDED","Approved Amendment /Adjustments ","  TOTAL FUNDS EXPENDED:   ","TOTAL UNEXPENDED BALANCE"]
[]
[null,null,"TOTALS",{"$f":"VLOOKUP('I. IPLEFrontpage'!$H$5,tydings_details!A1:O100,12,FALSE)","v":"FY14 Eligibility Amount"},{"$f":"'I. IPLEFrontpage'!$O$27","v":0},{"$f":"'Amend Details_III'!$H$26","v":0},{"$f":"$I$49","v":0},{"$f":"$J$49","v":0}]
[null,"Please complete and return within 60 days of full liquidation, but no later than August 31, 2014."]
[]
[null,"PART III: FINAL REPORT"]
[]
[null,"A.","Column A will automatically carry forward from Original Approved Budget."]
[null,"B. ","Column B will automatically carry forward from Amendment Requests (AM1 and AM2)."]
[null,"C. ","Column C should be completed by the grant reflecting funds spent between July 1, 2013 -June 30, 2014. "]
[null,"D. ","Column D will fill in automatically based upon line item changes made to Column C. "]
[]
[null,null,"LINE ITEM",null,null,null,"  TOTAL FUNDS AWARDED FY 14 Original ","Contract/ Amendment Adjustments ","Funds Expended FY14","Funds Unexpended FY14"]
[null,null,"Expenditure Category",null,null,null,"Column A","Column B","Column C","Column D"]
[null,"1.","Inclusive Preschool Teacher Salaries",null,null,null,{"$f":"'Amend Details_III'!$D$18","v":0},{"$f":"'Amend Details_III'!$H$18","v":0},0,{"$f":"H45-I45","v":0}]
[null,"2.","Paraprofessional Salaries",null,null,null,{"$f":"'Amend Details_III'!$D$19","v":0},{"$f":"'Amend Details_III'!$H$19","v":0},0,{"$f":"H46-I46","v":0}]
[null,"3.","Preschool Direct Services Staff Fringe Benefits",null,null,null,{"$f":"'III. Fund Allocation_Narrative'!$E$13","v":0},{"$f":"'Amend Details_III'!$H$20","v":0},0,{"$f":"H47-I47","v":0}]
[null,"4.","Transportation of Students",null,null,null,{"$f":"'III. Fund Allocation_Narrative'!$E$17","v":0},{"$f":"'Amend Details_III'!$H$23","v":0},0,{"$f":"H48-I48","v":0}]
[null,null,"FY 2013 IPLE Total:",null,null,null,{"$f":"SUM(G45:G48)","v":0},{"$f":"SUM(H45:H48)","v":0},{"$f":"SUM(I45:I48)","v":0},{"$f":"SUM(J45:J48)","v":0}]
[null,"I certify that all the information contained in the Final Financial Report is true and correct."]
[null,"Signature of Authorized Representative (in blue ink). ",null,null,null,"X"]
[null,"Typed or Printed Name:"]
[null,"Title: "]
[null,"Date Report Submitted:"]
[]
[null,null,"Received on"]

{"sheet":"tydings_details","index":9,"n_rows":100,"n_cols":16,"rows_kept":100,"cut":false,"hidden":true,"merged":[]}
[1,"FUNCTION","FIRST NAME","Last Name ","ORGANIZATION NAME","ORGANIZATION CODE","ADDRESS LINE 1","ADDRESS LINE 2","CITY/TOWN","STATE","ZIP CODE","Eligibility_Amount","Communities Served (DS)","FY12 login_legal_name","Fund Code","DOCID"]
[2,2,3,4,5,"6",7,8,9,10,11,12,13,14,"15","16"]
[3,"FUNCTION","FIRST NAME","Last Name ","Select FY14 Lead Agency Name ","Lead Agency Organization ID","Legal Address","ADDRESS LINE 2","City","MA","TIN_Zip_Code","FY14 Eligibility Amount","Communities Served (DS)","391FY14_LegalName","Fund Code","39114 DOCID"]
[4,null,null,null,"Action  for Boston Community Development","2000000","178 TREMONT STREET",null,"BOSTON","MA","02111",49805,null,"ACTION FOR BOSTON COMMUNITY",391,"39114ACTIONBOSTONCOM"]
[5,null,null,null,"Agawam Public Schools","0005","36 MAIN ST",null,"AGAWAM","MA","01001-1801",11853,null,"TOWN OF AGAWAM",391,"39114AGAWAMPUBLICSCH"]
[6,null,null,null,"Amherst Public Schools","0008","4 BOLTWOOD WALK",null,"AMHERST","MA","01002-2113",72591,null,"TOWN OF AMHERST",391,"39114AMHERSTPUBLICSC"]
[7,null,null,null,"Attleboro Public Schools","0016","77 PARK ST",null,"ATTLEBORO","MA","02703-2334",82067,null,"CITY OF ATTLEBORO",391,"39114ATTLEBOROPUBLIC"]
[8,null,null,null,"Ayer-Shirley RSD","0616","1 MAIN ST",null,"AYER","MA","01432-1365",66423,null,"TOWN OF AYER",391,"39114AYERPUBLICSCHO1"]
[9,null,null,null,"Blackstone-Millville RSD","0622","175 LINCOLN STREET",null,"BLACKSTONE","MA","01504",11036,null,"BLACKSTONE MILLVILLE",391,"39114BLACKSTONEMILLV"]
[10,null,null,null,"Boston Public Schools","0035","CITY HALL PLZ ROOM M-5",null,"BOSTON","MA","02201-0001",309201,null,"CITY OF BOSTON",391,"39114BOSTONPUBLICSCH"]
[11,null,null,null,"Bourne Public Schools","0036","24 PERRY AVE",null,"BOURNE","MA","02532-3441",24808,null,"TOWN OF BOURNE",391,"39114BOURNEPUBLICSCH"]
[12,null,null,null,"Brimfield Public Schools (Union 61)","0043","21 MAIN ST",null,"BRIMFIELD","MA","01010-9744",81311,null,"TOWN OF BRIMFIELD",391,"39114BRIMFIELDPUBLIC"]
[13,null,null,null,"Brockton Public Schools","0044","45 SCHOOL ST",null,"BROCKTON","MA","02301-4049",481800,null,"CITY OF BROCKTON, TREASURER",391,"39114BROCKTONPUBLICS"]
[14,null,null,null,"Brookline Public Schools","0046","333 WASHINGTON STREET",null,"BROOKLINE","MA","02146",126712,null,"TOWN OF BROOKLINE",391,"39114BROOKLINEPUBLIC"]
[15,null,null,null,"Cape Cod Child Development Program, Inc",1201061,"83 PEARL ST",null,"HYANNIS","MA","02601-3922",159769,null,"Cape Cod Child Development Program, Inc",391,"39114CAPECODCHILDDEV"]
[16,null,null,null,"Cape Cod Children's Place, Inc.","1471202","10 BALLWIC ROAD",null,"N EASTHAM","MA","02651",69438,null,"CAPE COD CHILDREN S PLACE INC",391,"39114CAPECODCHILDREN"]
[17,null,null,null,"Central Berkshire RSD","0635","20 CLEVELAND RD PO BOX 299",null,"DALTON","MA","01227",81265,null,"CENTRAL BERKSHIRE REGIONAL",391,"39114CENTRALBERKRSD0"]
[18,null,null,null,"Chicopee Public Schools","0061","274 FRONT ST",null,"CHICOPEE","MA","01013-2899",161754,null,"CITY OF CHICOPEE",391,"39114CHICOPEEPUBLICS"]
[19,null,null,null,"Clinton Public Schools","0064","242 CHURCH STREET",null,"CLINTON","MA","01510",26123,null,"TOWN OF CLINTON",391,"39114CLINTONPUBLICSC"]
[20,null,null,null,"Community Action, Inc.","1200217","145 ESSEX ST",null,"HAVERHILL","MA","01832-5528",24121,null,"COMMUNITY ACTION INC",391,"39114COMMACTAMESBURY"]
[21,null,null,null,"Concord Children's Center","1200667","1300 MAIN ST",null,"CONCORD","MA","01742-3027",17456,null,"CONCORD CHILDRENS CENTER INC",391,"39114CONCORDCHILDREN"]
[22,null,null,null,"Dartmouth Public Schools","0072","8 BUSH STREET",null,"Dartmouth","MA","02748",28474,null,"Town of Dartmouth",391,"39114DARTMOUTHPUBLIC"]
[23,null,null,null,"Dennis-Yarmouth RSD","0645","296 STATION AVENUE",null,"SOUTH YARMOUTH","MA","02664",133937,null,"DENNIS-YARMOUTH RSD",391,"39114DENNISYARMOUTHS"]
[24,null,null,null,"Dudley-Charlton RSD","0658","68 DUDLEY-OXFORD ROAD",null,"DUDLEY","MA","01570",41401,null,"DUDLEY CHARLTON REGIONAL",391,"39114DUDLEYCHARLTONR"]
[25,null,null,null,"Everett Public Schools","0093","484 BROADWAY",null,"EVERETT","MA","02149-3694",194564,null,"CITY OF EVERETT",391,"39114EVERETTPUBLICSC"]
[26,null,null,null,"Fall River Public Schools","0095","1 GOVERNMENT CTR",null,"FALL RIVER","MA","02722-7700",123938,null,"CITY OF FALL RIVER",391,"39114FALLRIVERPUBLIC"]
[27,null,null,null,"Farmington River RSD","0662","555 NO. MAIN ROAD",null,"OTIS","MA","01253",69016,null,"FARMINGTON RIVER REGIONAL",391,"39114FARMINGTONRIVER"]
[28,null,null,null,"Fitchburg Public Schools","0097","718 MAIN STREET",null,"FITCHBURG","MA","01420",32700,null,"CITY OF FITCHBURG",391,"39114FITCHBURGPUBLIC"]
[29,null,null,null,"Framingham Public Schools","0100","150 CONCORD ST",null,"FRAMINGHAM","MA","01702-8367",74133,null,"TOWN OF FRAMINGHAM",391,"39114FRAMINGHAMPUBLI"]
[30,null,null,null,"Frontier RSD","0607","4 GRAVES STREET",null,"SOUTH DEERFIELD","MA","01373",33402,null,"FRONTIER REGIONAL SCHOOL",391,"39114FRONTIERRSDUN28"]
[31,null,null,null,"Gateway RSD","0672","12 LITTLEVILLE ROAD",null,"HUNTINGTON","MA","01050",48839,null,"GATEWAY REGIONAL SCHOOL DIST",391,"39114GATEWAYRSD00000"]
[32,null,null,null,"Georgetown Public Schools","0105","ONE LIBRARY STREET",null,"GEORGETOWN","MA","01833",8012,null,"TOWN OF GEORGETOWN",391,"39114GEORGETOWNPUBLS"]
[33,null,null,null,"Gill-Montague RSD","0674","35 CROCKER AVE",null,"TURNERS FALLS","MA","01376",63253,null,"GILL MONTAGUE RSD",391,"39114GILLMONTAGUERSD"]
[34,null,null,null,"Greenfield Public Schools","0114","14 COURT SQ",null,"GREENFIELD","MA","01301",107293,null,"TOWN OF GREENFIELD",391,"39114GREENFIELDPUBLS"]
[35,null,null,null,"Hadley Public Schools","0117","100 MIDDLE ST",null,"HADLEY","MA","01035-9429",56688,null,"TOWN OF HADLEY",391,"39114HADLEYPUBLICSCH"]
[36,null,null,null,"Hampshire RSD","0632","19 STAGE ROAD",null,"WESTHAMPTON","MA","01027",52932,null,"HAMPSHIRE R S D",391,"39114HAMPSHIRERSD000"]
[37,null,null,null,"Hatfield Public Schools","0127","59 MAIN ST",null,"Hatfield","MA","01038-9702",7766,null,"Town of Hatfield",391,"39114HATFIELDPUBLICS"]
[38,null,null,null,"Haverhill Public Schools","0128","4 SUMMER ST",null,"HAVERHILL","MA","01830-5836",176551,null,"CITY OF HAVERHILL",391,"39114HAVERHILLPUBLIC"]
[39,null,null,null,"Holliston Public Schools","0136","703 WASHINGTON ST",null,"HOLLISTON","MA","01746-2168",21827,null,"TOWN OF HOLLISTON",391,"39114HOLLISTONPUBLIC"]
[40,null,null,null,"Holyoke-Chicopee-Springfield Head Start","1200966","30 MADISON AVE",null,"SPRINGFIELD","MA","01105-1404",207375,null,"HOLYOKE CHICOPEE SPRINGFIELD",391,"39114HOLYCHICHOLYOKE"]
[41,null,null,null,"Hudson Public Schools","0141","78 MAIN ST",null,"HUDSON","MA","01749-2180",50346,null,"TOWN OF HUDSON",391,"39114HUDSONPUBLICSCH"]
[42,null,null,null,"Hull Public Schools","0142","183 Harborview Road",null,"HULL","MA","02045",10628,null,"TOWN OF HULL",391,"39114HULLPUBLICSCHOO"]
[43,null,null,null,"Leominster Public Schools","0153","24 Church Street",null,"LEOMINSTER","MA","01453",29548,null,"CITY OF LEOMINSTER",391,"39114LEOMINSTERPUBLI"]
[44,null,null,null,"Lowell Public Schools","0160","43 Highland Street",null,"LOWELL","MA","01852",317657,null,"CITY OF LOWELL",391,"39114LOWELLPUBLICSCH"]
[45,null,null,null,"Ludlow Public Schools","0161","488 CHAPIN ST",null,"LUDLOW","MA","01056-2523",32720,null,"TOWN OF LUDLOW",391,"39114LUDLOWPUBLICSCH"]
[46,null,null,null,"Lynn Public Schools","0163","90 COMMERCIAL ST",null,"LYNN","MA","01905-2906",211779,null,"CITY OF LYNN",391,"39114LYNNPUBLICSCHOO"]
[47,null,null,null,"Malden Public Schools","0165","200 PLEASANT ST",null,"MALDEN","MA","02148-4884",130799,null,"CITY OF MALDEN",391,"39114MALDENPUBLICSCH"]
[48,null,null,null,"Marshfield Public Schools","0171","870 MORAINE ST",null,"MARSHFIELD","MA","02050-3498",24890,null,"TOWN OF MARSHFIELD",391,"39114MARSHFIELDPUBLI"]
[49,null,null,null,"Mashpee Public Schools","0172","16 GREAT NECK RD N",null,"MASHPEE","MA","02649-2528",45770,null,"TOWN OF MASHPEE",391,"39114MASHPEEPUBLICSC"]
[50,null,null,null,"Maynard Public Schools","0174","1 SUMMER ST",null,"MAYNARD","MA","01754-2305",22751,null,"TOWN OF MAYNARD",391,"39114MAYNARDPUBLICSC"]
[51,null,null,null,"Medford Public Schools","0176","85 GEORGE P HASSETT DR",null,"MEDFORD","MA","02155-3200",63724,null,"CITY OF MEDFORD",391,"39114MEDFORDPUBLICSC"]
[52,null,null,null,"Methuen Public Schools","0181","91 HAMPSHIRE STREET",null,"Methuen","MA","01844",40350,null,"CITY OF METHUEN",391,"39114METHUENPUBLICSC"]
[53,null,null,null,"Mohawk Trail RSD","0717","24 ASHFIELD ROAD",null,"SHELBURNE FALLS","MA","01370",137640,null,"MOHAWK TRAIL REGIONAL SCHOOL",391,"39114MOHAWKTRAILRSD0"]
[54,null,null,null,"Monomoy RSD","0126","732 MAIN ST",null,"HARWICH","MA","",34676,null,"Monomoy Regional",391,"39114MONOMOYRSD00000"]
[55,null,null,null,"Narragansett RSD","0720","TREASURER/MAIN STREET",null,"OTTER RIVER","MA","01436",38949,null,"NARRAGANSETT REGIONAL SCH DIST",391,"39114NARRAGANSETTRSD"]
[56,null,null,null,"Nashoba RSD","0725","50 MECHANIC ST",null,"BOLTON","MA","01740-1327",24525,null,"NASHOBA REGIONAL SCHOOL DISTRICT",391,"39114NASHOBARSD00002"]
[57,null,null,null,"New Beford Public Schools","0201","133 WILLIAM ST",null,"NEW BEDFORD","MA","02740-6132",178276,null,"CITY of NEW BEDFORD",391,"39114NEWBEDFORDPUBLI"]
[58,null,null,null,"NEW SALEM/WENDELL UNION SCHOOL","0728","18 PLEASANT STREET",null,"ERVING","MA","01344",123776,null,"NEW SALEM/WENDELL UNION SCHOOL",391,"39114NEWSALEMWENDELL"]
[59,null,null,null,"Newton Public Schools","0207","100 Walnut Street",null,"NEWTON","MA","02460",17508,null,"CITY OF NEWTON",391,"39114NEWTONPUBLICSCH"]
[60,null,null,null,"North Adams Public Schools","0209","191 East Main Street, Suite 1",null,"NORTH ADAMS","MA","01247",102521,null,"CITY OF NORTH ADAMS",391,"39114NORTHADAMSPUBLI"]
[61,null,null,null,"North Attleboro Public Schools","0212",null,null,"North Attleboro","MA",null,46848,null,"Town of North Attleboro",391,"39114NORTHATTLEBORO1"]
[62,null,null,null,"North Brookfield Public School ","0215","10 Noew School Drive",null,"North Brookfield","MA",1535,10628,null,"Town of North Brookfield",391,"39114NORTHBROOKFIELD"]
[63,null,null,null,"Northampton Public Schools","0210","210 MAIN ST",null,"NORTHAMPTON","MA","01060-3196",49050,null,"CITY OF NORTHAMPTON",391,"39114NORTHAMPTONPUBA"]
[64,null,null,null,"Norton Public Schools","0218","64 West Main Street ",null,"Norton ","MA",null,83316,null,"Town of Norton ",391,"39114NORTONPUBLICSHO"]
[65,null,null,null,"Norwood Public Schools","0220","566 WASHINGTON ST",null,"NORWOOD","MA","02062-2203",45356,null,"TOWN OF NORWOOD",391,"39114NORWOODPUBLICCS"]
[66,null,null,null,"Old Rochester RSD","0250","REGIONAL SCHOOL DISTRICT",null,"MATTAPOISETT","MA","02739",37319,null,"OLD ROCHESTER",391,"39114OLDROCHESTERRSD"]
[67,null,null,null,"Orange Public Schools","0223","6 PROSPECT ST",null,"ORANGE","MA","01364-1133",67254,null,"TOWN OF ORANGE",391,"39114ORANGEPUBLICSCH"]
[68,null,null,null,"Oxford Public Schools","0226","181 MAIN ST",null,"OXFORD","MA","01540-2352",6084,null,"TOWN OF OXFORD",391,"39114OXFORDPUBLICSCH"]
[69,null,null,null,"Pathways for Children","1200275","29 EMERSON AVE",null,"GLOUCESTER","MA","01930",96234,null,"PATHWAYS FOR CHILDREN INC",391,"39114PATHWAYS4CHILDR"]
[70,null,null,null,"Pioneer Valley RSD","0750","97 F. Sumner Turner Road",null,"NORTHFIELD","MA","01360",88263,null,"PIONEER VALLEY REGNL SCH",391,"39114PIONEERVALLEYRS"]
[71,null,null,null,"Pittsfield Public Schools","0236","70 ALLEN ST",null,"PITTSFIELD","MA","01201-6250",84425,null,"CITY OF PITTSFIELD",391,"39114PITTSFIELDPUBLI"]
[72,null,null,null,"Plymouth Public Schools","0239","11 LINCOLN ST",null,"PLYMOUTH","MA","02360-3325",85872,null,"TOWN OF PLYMOUTH",391,"39114PLYMOUTHPUBLICS"]
[73,null,null,null,"QCAP Head Start","1200671","1509 HANCOCK STREET",null,"QUINCY","MA","02169",281262,null,"QUINCY COMMUNITY",391,"39114QCAPQUINCYBRAIN"]
[74,null,null,null,"Quaboag RSD","0778","48 HIGH STREET,",null,"WARREN","MA","01083",38644,null,"QUABOAG REGIONAL SCH DIST",391,"39114QUABOAGRSD00000"]
[75,null,null,null,"Revere Public Schools","0248","281 BROADWAY",null,"REVERE","MA","02151-5027",293942,null,"CITY OF REVERE",391,"39114REVEREPUBLICSCH"]
[76,null,null,null,"Rockland Public Schools","0251","198 Spring Street ",null,"Rockand","MA",2370,41734,null,"Town of Rockland",391,"39114ROCKLANDPUBLICS"]
[77,null,null,null,"Roudenbush Community Center","1200358","65 MAIN STREET",null,"WESTFORD","MA","01886",5723,null,"THE ROUDENBUSH COMMUNITY",391,"39114ROUDENBUSHCOMCT"]
[78,null,null,null,"Salem Public Schools","0258","93 WASHINGTON ST",null,"SALEM","MA","01970-3527",69651,null,"CITY OF SALEM",391,"39114SALEMPUBLICSCHO"]
[79,null,null,null,"Sandwich Public Schools","0261","130 MAIN ST",null,"SANDWICH","MA","02563-2280",26914,null,"TOWN OF SANDWICH",391,"39114SANDWICHPUBLICS"]
[80,null,null,null,"Scituate Public Schools","0264","606 CHIEF JUSTICE CUSHING WAY",null,"SCITUATE","MA","02066",31588,null,"TOWN OF SCITUATE",391,"39114SCITUATEPUBLICS"]
[81,null,null,null,"Self Help, Inc., SHARE Partnership","1201058","780 WEST MAIN ST",null,"AVON","MA","02322",128231,null,"SELF HELP INC",391,"39114SELFHELPSHARE00"]
[82,null,null,null,"Shining Stars Learning Center","1471922","20 East Denver Street",null,"SAUGUS","MA","01906-2344",13538,null,"SHINING STARS LEARNING CENTER, INC.",391,"39114SHININSTARLEARN"]
[83,null,null,null,"South Hadley Public Schools","0278","116 MAIN STREET,",null,"South Hadley","MA","01075",17532,null,"Town of South Hadley",391,"39114SOUTHHADLEYPUBL"]
[84,null,null,null,"Southbridge Public Schools","0277","41 ELM STREET",null,"SOUTHBRIDGE","MA","01550-2645",92072,null,"TOWN OF SOUTHBRIDGE",391,"39114SOUTHBRIDGEPUBL"]
[85,null,null,null,"Southern Berkshire RSD","0765","491 Berkshire School Road",null,"SHEFFIELD","MA","01257",32383,null,"SOUTHERN BERKSHIRE RSD",391,"39114SOUTHBERKSHIRER"]
[86,null,null,null,"Springfield Public Schools","0281","36 COURT ST",null,"SPRINGFIELD","MA","01103-1699",230973,null,"CITY OF SPRINGFIELD",391,"39114SPRINGFIELDPUBL"]
[87,null,null,null,"Triton RSD","0773","112 ELM ST",null,"BYFIELD","MA","01922",54484,null,"TRITON REGIONAL SCH DISTRICT",391,"39114TRITONRSD000000"]
[88,null,null,null,"Triumph, Inc","1201230","100 GORDON OWEN RIVERWAY",null,"TAUNTON","MA","02780",109572,null,"TRIUMPH INC",391,"39114TRIUMPHINC00000"]
[89,null,null,null,"Uxbridge Public Schools","0304","21 S MAIN ST",null,"UXBRIDGE","MA","01569",19509,null,"TOWN OF UXBRIDGE",391,"39114UXBRIDGEPUBLICS"]
[90,null,null,null,"Walpole Public Schools","0307","135 SCHOOL ST",null,"WALPOLE","MA","02081-2844",29881,null,"TOWN OF WALPOLE",391,"39114WALPOLEPUBLICSC"]
[91,null,null,null,"Ware Public Schools","0309","126 MAIN ST",null,"Ware","MA","01082-1360",24446,null,"Town of Ware",391,"39114WAREPUBLICSCHOO"]
[92,null,null,null,"Watertown Public School","0314","149 MAIN ST",null,"WATERTOWN","MA","02472-4423",14715,null,"TOWN OF WATERTOWN",391,"39114WATERTOWNPUBLIC"]
[93,null,null,null,"West Boylston Public Schools","0322","120 PRESCOTT ST",null,"WEST BOYLSTON","MA","01583-1146",14800,null,"TOWN OF WEST BOYLSTON",391,"39114WESTBOYLSTONPUB"]
[94,null,null,null,"West Springfield Public SchoolS","0332","26 CENTRAL ST",null,"WEST SPRINGFIELD","MA","01089",111259,null,"TOWN OF WEST SPRINGFIELD",391,"39114WESTSPRINGFIELD"]
[95,null,null,null,"Westfield Public Schools","0325","100 ELM ST",null,"WESTFIELD","MA","01085-2907",128182,null,"CITY OF WESTFIELD",391,"39114WESTFIELDPUBLIC"]
[96,null,null,null,"Weymouth Public Schools","0336","75 MIDDLE ST",null,"WEYMOUTH","MA","02189-1359",144878,null,"TOWN OF WEYMOUTH",391,"39114WEYMOUTHPUBLICS"]
[97,null,null,null,"Whitman-Hanson RSD","0780","PO BOX 1182",null,"BOSTON","MA","02103",17438,null,"WHITMAN HANSON REGIONAL SCHOOL",391,"39114WHITMANHANSONRS"]
[98,null,null,null,"Winchendon Public Schools","0343","109 FRONT ST",null,"WINCHENDON","MA","01475-1758",45149,null,"TOWN OF WINCHENDON",391,"39114WINCHENDONPUBLI"]
[99,null,null,null,"Worcester Public Schools","0348","455 MAIN ST RM 203",null,"WORCESTER","MA","01608-1870",645212,null,"CITY OF WORCESTER",391,"39114WORCESTERPUBLIC"]
[null,null,null,null,null,null,null,null,null,null,null,{"$f":"SUM(L4:L99)","v":8342828},null,null,null,{"$f":"A1:O100","v":{"$error":"#VALUE!"}}]